fUST/lending_fUST_20241119
["ID","MTS","AMOUNT","RATE_DAILY","PERIOD"]
[342535744,1731957582396,-200.0,0.0001982,3]
[342535745,1731957582432,-7010.42096196,0.0002,2]
[342535746,1731957582727,-5.20403804,0.0002,2]
[342535747,1731957599976,-7015.625,0.0002,2]
[342535748,1731957610478,7015.625,0.0002,2]
[342535749,1731957612452,6953.125,0.0002,2]
[342535751,1731957951141,-189.69,0.000179,2]
[342535752,1731957951165,-300.0,0.00019999,2]
[342535753,1731957951187,-62.5,0.0002,2]
[342535754,1731957951210,-316.85163073,0.0002,2]
[342535756,1731958033122,-163.395699,0.00013973,2]
[342535757,1731958033145,-6698.77336927,0.0002,2]
[342535758,1731958033170,-163.395699,0.00020447,2]
[342535759,1731958033194,-399.58288257,0.00021189,2]
[342535760,1731958033224,-164.17266,0.00021281,2]
[342535761,1731958033248,-300.0,0.00021664,2]
[342535762,1731958033272,-18010.48680524,0.00021665,2]
[342535771,1731958162093,-170.73,0.000179,2]
[342535772,1731958162116,-500.0,0.00021664,2]
[342535773,1731958162139,-500.0,0.00021664,2]
[342535774,1731958162162,-5507.21405686,0.00021665,2]
[342535775,1731958162183,-500.0,0.00021938,2]
[342535776,1731958162205,-500.0,0.00021938,2]
[342535777,1731958162226,-165.0,0.00022,2]
[342535778,1731958162247,-160.0,0.00022,2]
[342535779,1731958162267,-160.65738735,0.00022,10]
[342535780,1731958162290,-478.52855579,0.00022212,2]
[342535817,1731958232182,-563.93,0.00021664,2]
[342535818,1731958232193,-500.0,0.00021664,2]
[342535819,1731958232203,-4292.98172816,0.00021917,2]
[342535821,1731958232216,-707.01827184,0.00021917,2]
[342535823,1731958232226,-563.93,0.00021938,2]
[342535825,1731958232235,-500.0,0.00021938,2]
[342535827,1731958232244,-21.47144421,0.00022212,2]
[342535829,1731958232254,-500.0,0.00022212,2]
[342535831,1731958232263,-563.93,0.00022212,2]
[342535833,1731958232273,-500.0,0.00022212,2]
[342535836,1731958232283,-618.75211038,0.00022486,2]
[342535838,1731958232293,-563.93,0.00022486,2]
[342535840,1731958232302,-500.0,0.00022486,2]
[342535842,1731958232311,-563.93,0.0002276,2]
[342535844,1731958232320,-500.0,0.0002276,2]
[342535846,1731958232329,-165.0,0.00023014,2]
[342535848,1731958232339,-160.0,0.00023014,2]
[342535850,1731958232348,-563.93,0.00023034,2]
[342535852,1731958232358,-500.0,0.00023034,2]
[342535854,1731958232367,-500.0,0.00023102,2]
[342535856,1731958232379,-500.0,0.00023102,2]
[342535858,1731958232389,-500.0,0.00023102,2]
[342535860,1731958232398,-500.0,0.00023102,2]
[342535862,1731958232408,-500.0,0.00023102,2]
[342535864,1731958232417,-493.20596545,0.00023102,2]
[342535866,1731958232426,-380.13,0.00023102,2]
[342535868,1731958232437,-500.0,0.00023102,2]
[342535870,1731958232449,-460.76469082,0.00023102,2]
[342535873,1731958232462,-39.23530918,0.00023102,2]
[342535875,1731958232471,-500.0,0.00023102,2]
[342535877,1731958232481,-500.0,0.00023102,2]
[342535878,1731958232491,-500.0,0.00023102,2]
[342535881,1731958232500,-345.96,0.00023102,2]
[342535883,1731958232509,-274.80469082,0.00023102,2]
[342535886,1731958232714,-225.19530918,0.00023102,2]
[342535887,1731958232724,-500.0,0.00023102,2]
[342535888,1731958232735,-1.12350396,0.00023102,2]
[342535889,1731958232755,-366.00012,0.00023102,2]
[342535890,1731958232768,-3.72637604,0.00023102,2]
[342535891,1731958232778,-500.0,0.00023102,2]
[342535892,1731958232788,-126.27362396,0.00023102,2]
[342535893,1731958232801,-373.72637604,0.00023102,2]
[342535894,1731958232812,-500.0,0.00023102,2]
[342535895,1731958232821,-321.58,0.00023102,2]
[342535896,1731958232831,-500.0,0.00023102,2]
[342535897,1731958232842,-563.93,0.00023308,2]
[342535898,1731958232853,-500.0,0.00023308,2]
[342535899,1731958232865,-500.0,0.00023376,2]
[342535900,1731958232879,-314.68,0.00023376,2]
[342535901,1731958232890,-500.0,0.00023376,2]
[342535902,1731958232900,-500.0,0.00023376,2]
[342535903,1731958232910,-500.0,0.00023376,2]
[342535904,1731958232920,-500.0,0.00023376,2]
[342535905,1731958232930,-486.71,0.00023376,2]
[342535906,1731958232940,-500.0,0.00023376,2]
[342535907,1731958232949,-500.0,0.00023376,2]
[342535908,1731958232959,-500.0,0.00023376,2]
[342535909,1731958232968,-500.0,0.00023376,2]
[342535910,1731958232978,-205.92,0.00023376,2]
[342535911,1731958232987,-500.0,0.00023376,2]
[342535912,1731958232998,-500.0,0.00023376,2]
[342535913,1731958233008,-291.61,0.00023376,2]
[342535914,1731958233018,-563.93,0.00023582,2]
[342535915,1731958233027,-500.0,0.00023582,2]
[342535916,1731958233035,-175.92,0.00023592,4]
[342535917,1731958233044,-500.0,0.0002365,2]
[342535918,1731958233055,-563.93,0.00023856,2]
[342535919,1731958233066,-500.0,0.00023856,2]
[342535920,1731958233077,-500.0,0.00023924,2]
[342535921,1731958233087,-563.93,0.0002413,2]
[342535922,1731958233097,-500.0,0.0002413,2]
[342535923,1731958233106,-5000.0,0.00024197,2]
[342535924,1731958233115,-500.0,0.00024198,2]
[342535925,1731958233129,-563.93,0.00024404,2]
[342535926,1731958233139,-500.0,0.00024404,2]
[342535927,1731958233150,-211.84919689,0.00024472,2]
[342535928,1731958233160,-1038.06607,0.00024509,15]
[342535929,1731958233170,-183.21742102,0.00024557,2]
[342535930,1731958233180,-160.25718692,0.00024658,2]
[342535931,1731958233191,-563.93,0.00024678,2]
[342535932,1731958233200,-336.815208,0.00024678,2]
[342535933,1731958233210,-500.0,0.00024864,7]
[342535934,1731958233219,-198.78372766,0.000249,2]
[342535935,1731958233229,-563.93,0.00024952,2]
[342535936,1731958233239,-500.0,0.00024957,2]
[342535937,1731958233249,-500.0,0.00024958,2]
[342535938,1731958233258,-500.0,0.00024958,2]
[342535939,1731958233268,-500.0,0.00024958,2]
[342535940,1731958233279,-500.0,0.00024958,2]
[342535941,1731958233289,-500.0,0.00024958,2]
[342535942,1731958233299,-500.0,0.00024958,2]
[342535943,1731958233309,-500.0,0.00024958,2]
[342535944,1731958233319,-500.0,0.00024958,2]
[342535945,1731958233329,-500.0,0.00024958,2]
[342535946,1731958233338,-500.0,0.00024958,2]
[342535947,1731958233348,-500.0,0.00024958,2]
[342535948,1731958233359,-500.0,0.00024958,2]
[342535949,1731958233369,-500.0,0.00024958,2]
[342535950,1731958233384,-500.0,0.00024958,2]
[342535951,1731958233394,-500.0,0.00024958,2]
[342535952,1731958233404,-500.0,0.00024958,2]
[342535953,1731958233415,-500.0,0.00024958,2]
[342535954,1731958233427,-500.0,0.00024958,2]
[342535955,1731958233438,-500.0,0.00024958,2]
[342535956,1731958233451,-500.0,0.00024958,2]
[342535957,1731958233462,-500.0,0.00024958,2]
[342535958,1731958233472,-500.0,0.00024958,2]
[342535959,1731958233483,-546.01893028,0.00024958,2]
[342535960,1731958233493,-43449.52,0.0002498,10]
[342535961,1731958233503,-52139.43,0.0002499,10]
[342535962,1731958233514,-454.24563124,0.00024999,2]
[342535963,1731958233524,-300.0,0.00025,2]
[342535964,1731958233534,-300.0,0.00025,2]
[342535965,1731958233544,-300.0,0.00025,2]
[342535966,1731958233554,-271.7,0.00025,2]
[342535967,1731958233564,-151.0,0.00025,2]
[342535968,1731958233574,-500.0,0.00025,17]
[342535969,1731958233584,-302.75782099,0.00025,2]
[342535970,1731958233594,-1380.08870606,0.00025,2]
[342535971,1731958233603,-234763.24139694,0.00025,2]
[342535972,1731958233613,-5156.74179303,0.00025,2]
[342535973,1731958233623,-11683.65645838,0.00025,2]
[342535974,1731958233636,-563.93,0.00025226,2]
[342535975,1731958233646,-302.75782099,0.0002525,2]
[342535976,1731958233656,-5000.0,0.00025292,2]
[342535977,1731958233667,-302.75782099,0.000255,2]
[342535978,1731958233677,-512.19,0.000255,7]
[342535979,1731958233687,-563.93,0.000255,2]
[342535980,1731958233699,-300.0,0.000257,2]
[342535981,1731958233709,-302.75782099,0.0002575,2]
[342535982,1731958233719,-563.93,0.00025774,2]
[342535983,1731958233728,-302.75782099,0.00026,2]
[342535984,1731958233738,-563.93,0.00026048,2]
[342535985,1731958233752,-155.10161703,0.00026137,120]
[342535986,1731958233768,-454.13673149,0.0002625,4]
[342535987,1731958233778,-563.93,0.00026322,2]
[342535988,1731958233790,-500.0,0.00026327,3]
[342535989,1731958233800,-660.0,0.00026384,2]
[342535990,1731958233810,-454.13673149,0.000265,4]
[342535991,1731958233819,-563.93,0.00026596,2]
[342535992,1731958233829,-300.0,0.000267,2]
[342535993,1731958233839,-454.13673149,0.0002675,4]
[342535994,1731958233849,-160.0,0.00026795,3]
[342535995,1731958233858,-563.93,0.0002687,2]
[342535996,1731958233868,-163.395699,0.00026921,2]
[342535997,1731958233882,-456.2075091,0.00027,4]
[342535998,1731958233891,-563.93,0.00027144,2]
[342535999,1731958233902,-563.93,0.00027418,2]
[342536000,1731958233911,-563.93,0.00027692,2]
[342536001,1731958233921,-500.0,0.00027697,4]
[342536002,1731958233931,-6291.47175937,0.00027697,7]
[342536003,1731958233941,-300.0,0.000277,2]
[342536004,1731958233950,-1000.0,0.000277,2]
[342536005,1731958233960,-500.0,0.00027773,5]
[342536006,1731958233968,-734.90604135,0.000278,2]
[342536007,1731958233976,-276.16853823,0.000278,2]
[342536008,1731958233985,-496659.64885405,0.000278,120]
[342536009,1731958233996,-563.9687255,0.00027966,2]
[342536010,1731958234007,-32472.88357357,0.00027978,2]
[342536011,1731958234017,-32472.88357357,0.00027983,2]
[342536012,1731958234027,-32472.88357357,0.00028,2]
[342536013,1731958234038,-1000.0,0.000282,2]
[342536014,1731958234048,-151799.69256529,0.000286,2]
[342536015,1731958234058,-5000.0,0.00028646,2]
[342536016,1731958234068,-5000.0,0.00028646,2]
[342536017,1731958234079,-284.99,0.00028647,3]
[342536018,1731958234088,-5000.0,0.00028655,2]
[342536019,1731958234098,-200.0,0.00028656,3]
[342536020,1731958234108,-5000.0,0.00028656,2]
[342536021,1731958234118,-5000.0,0.00028656,2]
[342536022,1731958234132,-5000.0,0.00028666,2]
[342536023,1731958234142,-5000.0,0.00028666,2]
[342536024,1731958234152,-5000.0,0.00028666,2]
[342536025,1731958234162,-384.14,0.00028666,2]
[342536026,1731958234172,-77421.42560091,0.00028667,2]
[342536027,1731958234182,-1000.0,0.00028681,2]
[342536028,1731958234192,-14309.75903056,0.00028697,2]
[342536029,1731958234202,-330.0,0.00028697,2]
[342536030,1731958234212,-472.95627991,0.00028699,2]
[342536031,1731958234223,-1297.51327656,0.000287,10]
[342536032,1731958234234,-160.0,0.000287,4]
[342536033,1731958234244,-161.14084017,0.000287,5]
[342536034,1731958234254,-300.0,0.000287,2]
[342536035,1731958234264,-1000.0,0.000287,2]
[342536036,1731958234275,-151.0,0.00028727,7]
[342536037,1731958234286,-151.0,0.00028727,7]
[342536038,1731958234297,-151.0,0.00028727,7]
[342536039,1731958234308,-151.0,0.00028727,7]
[342536040,1731958234318,-271.325996,0.00028727,7]
[342536041,1731958234330,-500.0,0.00028727,7]
[342536042,1731958234341,-150.14,0.00028727,2]
[342536043,1731958234352,-536.0,0.00028727,7]
[342536044,1731958234362,-514.0,0.00028767,2]
[342536045,1731958234373,-151.0,0.00028771,7]
[342536046,1731958234391,-151.0,0.00028771,7]
[342536047,1731958234401,-151.0,0.00028771,7]
[342536048,1731958234411,-187.779259,0.00028771,7]
[342536049,1731958234422,-659.882055,0.00028771,7]
[342536050,1731958234433,-659.882055,0.00028771,7]
[342536051,1731958234445,-659.882055,0.00028771,7]
[342536052,1731958234456,-659.882055,0.00028771,7]
[342536053,1731958234466,-659.882055,0.00028771,7]
[342536054,1731958234477,-659.882055,0.00028771,7]
[342536055,1731958234489,-659.882055,0.00028771,7]
[342536056,1731958234500,-659.882055,0.00028771,7]
[342536057,1731958234511,-659.882055,0.00028771,7]
[342536058,1731958234522,-659.882055,0.00028771,7]
[342536059,1731958234532,-659.882055,0.00028771,7]
[342536060,1731958234544,-659.882055,0.00028771,7]
[342536061,1731958234554,-659.882055,0.00028771,7]
[342536062,1731958234566,-659.882055,0.00028771,7]
[342536063,1731958234577,-659.882055,0.00028771,7]
[342536064,1731958234588,-659.882055,0.00028771,7]
[342536065,1731958234599,-659.882055,0.00028771,7]
[342536066,1731958234611,-659.882055,0.00028771,7]
[342536067,1731958234621,-659.882055,0.00028771,7]
[342536068,1731958234639,-659.882048,0.00028771,7]
[342536069,1731958234650,-151.0,0.00028771,7]
[342536070,1731958234661,-151.0,0.00028771,7]
[342536071,1731958234671,-151.0,0.00028771,7]
[342536072,1731958234682,-151.0,0.00028771,7]
[342536073,1731958234693,-151.0,0.00028771,7]
[342536074,1731958234703,-151.0,0.00028771,7]
[342536075,1731958234714,-155.08484,0.00028771,7]
[342536076,1731958234724,-336.815208,0.00028781,2]
[342536077,1731958234734,-336.815208,0.00028781,2]
[342536078,1731958234744,-151.0,0.00028781,7]
[342536079,1731958234755,-247.921642,0.00028781,7]
[342536080,1731958234764,-151.0,0.00028781,7]
[342536081,1731958234775,-151.0,0.00028781,7]
[342536082,1731958234959,-151.0,0.00028781,7]
[342536083,1731958234967,-151.0,0.00028781,7]
[342536084,1731958234977,-151.0,0.00028781,7]
[342536085,1731958234987,-151.0,0.00028781,7]
[342536086,1731958234997,-151.0,0.00028781,7]
[342536087,1731958235007,-151.0,0.00028781,7]
[342536088,1731958235017,-151.0,0.00028781,7]
[342536089,1731958235027,-151.0,0.00028781,7]
[342536090,1731958235037,-151.0,0.00028781,7]
[342536091,1731958235046,-151.0,0.00028781,7]
[342536092,1731958235056,-208.67469,0.00028781,7]
[342536093,1731958235066,-151.0,0.00028781,7]
[342536094,1731958235076,-151.0,0.00028781,7]
[342536095,1731958235086,-299.310374,0.00028781,7]
[342536096,1731958235095,-151.0,0.00028781,7]
[342536097,1731958235105,-179.784411,0.00028781,7]
[342536098,1731958235115,-179.784411,0.00028781,7]
[342536099,1731958235130,-179.784411,0.00028781,7]
[342536100,1731958235140,-179.784411,0.00028781,7]
[342536101,1731958235150,-179.784411,0.00028781,7]
[342536102,1731958235160,-179.784411,0.00028781,7]
[342536103,1731958235170,-179.784411,0.00028781,7]
[342536104,1731958235180,-179.784411,0.00028781,7]
[342536105,1731958235190,-179.784411,0.00028781,7]
[342536106,1731958235200,-179.784411,0.00028781,7]
[342536107,1731958235210,-179.784411,0.00028781,7]
[342536108,1731958235219,-179.784411,0.00028781,7]
[342536109,1731958235229,-179.784411,0.00028781,7]
[342536110,1731958235239,-179.784411,0.00028781,7]
[342536111,1731958235249,-179.784411,0.00028781,7]
[342536112,1731958235260,-179.784411,0.00028781,7]
[342536113,1731958235269,-179.784411,0.00028781,7]
[342536114,1731958235280,-179.784411,0.00028781,7]
[342536115,1731958235290,-179.784411,0.00028781,7]
[342536116,1731958235299,-179.784408,0.00028781,7]
[342536117,1731958235309,-151.0,0.00028781,7]
[342536118,1731958235319,-151.0,0.00028781,7]
[342536119,1731958235328,-151.0,0.00028781,7]
[342536120,1731958235337,-151.0,0.00028781,7]
[342536121,1731958235347,-151.0,0.00028781,7]
[342536122,1731958235357,-151.0,0.00028781,7]
[342536123,1731958235366,-151.0,0.00028781,7]
[342536124,1731958235381,-151.0,0.00028781,7]
[342536125,1731958235391,-251.831844,0.00028781,7]
[342536126,1731958235400,-151.0,0.00028781,7]
[342536127,1731958235410,-151.0,0.00028781,7]
[342536128,1731958235420,-552163.87590767,0.00028781,10]
[342536161,1731958238406,-199.1,0.00023102,2]
[342536163,1731958238416,-952.835,0.00024509,15]
[342536165,1731958238426,-500.0,0.00024678,2]
[342536167,1731958238437,-500.0,0.00024952,2]
[342536169,1731958238449,-2345.52192854,0.0002498,10]
[342536182,1731958238561,-41103.99807146,0.0002498,10]
[342536184,1731958238571,-500.0,0.00024989,2]
[342536186,1731958238581,-156.07842194,0.00024989,2]
[342536188,1731958238590,-500.0,0.00024989,2]
[342536190,1731958238599,-500.0,0.00024989,2]
[342536192,1731958238609,-500.0,0.00024989,2]
[342536194,1731958238619,-500.0,0.00024989,2]
[342536196,1731958238631,-184.60421327,0.00024989,2]
[342536198,1731958238641,-500.0,0.00024989,2]
[342536200,1731958238650,-500.0,0.00025226,2]
[342536202,1731958238660,-330.27,0.000255,2]
[342536204,1731958238670,-150.03787933,0.00028773,5]
[342536206,1731958238679,-293.464,0.00028781,2]
[342536208,1731958238689,-333669.5922552,0.00028781,10]
[342536210,1731958238700,-11744.18413374,0.00028781,10]
[342536212,1731958238712,-287406.45829013,0.00028781,10]
[342536215,1731958238728,-44874.99999999,0.00028781,10]
[342536695,1731958243706,-481.52910495,0.00023102,2]
[342536697,1731958243716,-256.44569622,0.00023276,2]
[342536699,1731958243727,-159.02519883,0.00024509,15]
[342536702,1731958243739,-796.51480117,0.00024509,15]
[342536704,1731958243748,-500.0,0.00024989,2]
[342536706,1731958243758,-276.44904094,0.00024989,2]
[342536708,1731958243768,-459.80821457,0.00024989,2]
[342536710,1731958243777,-236.47813995,0.0002878,2]
[342536712,1731958243788,-9627.26081541,0.00028781,10]
[342536714,1731958243799,-9102.69915503,0.00028781,10]
[342536716,1731958243812,-3031.206352,0.00028781,10]
[342536737,1731958244016,-3812.51825525,0.00028781,10]
[342536740,1731958244028,-9942.9255001,0.00028781,10]
[342536979,1731958246507,-1000.0,0.000277,2]
[342536981,1731958246518,-7995.5,0.00028781,10]
[342536994,1731958246640,-138485.14003238,0.00028781,10]
[342540281,1731958747605,186.01,0.00025,120]
[342540283,1731959144135,-163.395699,0.00013973,2]
[342540284,1731959144157,-82.24146407,0.000181,2]
[342540286,1731959351134,-150.0,0.000182,2]
[342540287,1731959351156,-6871.97071323,0.0002,2]
[342540291,1731959357086,-143.65428677,0.0002,2]
[342540292,1731959357107,-163.395699,0.00021661,2]
[342540293,1731959357129,-77.36481423,0.00021885,2]
[342540348,1731959432571,-150.0,0.000187,2]
[342540350,1731959432581,-88.05918977,0.00021885,2]
[342540352,1731959432590,-163.278985,0.00022398,2]
[342540354,1731959432600,-901.6980373,0.00022729,2]
[342540356,1731959432610,-300.0,0.000231,2]
[342540357,1731959432620,-300.0,0.000231,2]
[342540359,1731959432629,-3818.84803292,0.000231,2]
[342540361,1731959432639,-442.92,0.00023101,2]
[342540363,1731959432648,-197.4883678,0.00023101,2]
[342540365,1731959432657,-500.0,0.00023101,2]
[342540367,1731959432666,-500.0,0.00023101,2]
[342540369,1731959432682,-196.39,0.00023101,2]
[342540371,1731959432692,-500.0,0.00023101,2]
[342540373,1731959432702,-500.0,0.00023101,2]
[342540375,1731959432712,-500.0,0.00023101,2]
[342540377,1731959432722,-500.0,0.00023101,2]
[342540379,1731959432732,-310.06,0.00023101,2]
[342540381,1731959432741,-500.0,0.00023101,2]
[342540382,1731959432751,-418.06,0.00023101,2]
[342540384,1731959432761,-212.99,0.00023101,2]
[342540386,1731959432770,-269.21,0.00023101,2]
[342540388,1731959432780,-265.6,0.00023101,2]
[342540390,1731959432789,-500.0,0.00023101,2]
[342540392,1731959432799,-500.0,0.00023101,2]
[342540394,1731959432809,-426.42289498,0.00023101,2]
[342540396,1731959432818,-243.09,0.00023101,2]
[342540398,1731959432829,-441.88,0.00023101,2]
[342540400,1731959432840,-240.85,0.00023101,2]
[342540401,1731959432849,-279.08,0.00023101,2]
[342540403,1731959432859,-470.96296615,0.00023101,2]
[342540405,1731959432869,-500.0,0.00023101,2]
[342540407,1731959432878,-500.0,0.00023101,2]
[342540409,1731959432888,-281.98,0.00023101,2]
[342540411,1731959432898,-500.0,0.00023101,2]
[342540413,1731959432910,-623.21,0.00023101,2]
[342540415,1731959432919,-409.67440532,0.00023101,2]
[342540417,1731959432934,-500.0,0.00023101,2]
[342540419,1731959432943,-500.0,0.00023101,2]
[342540421,1731959432953,-500.0,0.00023101,2]
[342540423,1731959432962,-500.0,0.00023101,2]
[342540424,1731959432971,-500.0,0.00023101,2]
[342540426,1731959432979,-232.83,0.00023101,2]
[342540428,1731959432989,-500.0,0.00023101,2]
[342540430,1731959432999,-267.61,0.00023101,2]
[342540432,1731959433008,-509.58,0.00023101,2]
[342540434,1731959433018,-225.92741708,0.00023101,2]
[342540436,1731959433029,-500.0,0.00023375,2]
[342540438,1731959433039,-298.64,0.00023375,2]
[342540440,1731959433049,-632.28,0.00023375,2]
[342540442,1731959433059,-451.17,0.00023375,2]
[342540444,1731959433070,-585.87,0.00023375,2]
[342540446,1731959433080,-237.47,0.00023375,2]
[342540448,1731959433090,-345.85,0.00023375,2]
[342540450,1731959433101,-500.0,0.00023375,2]
[342540452,1731959433112,-500.0,0.00023375,2]
[342540454,1731959433123,-500.0,0.00023375,2]
[342540456,1731959433134,-597.0,0.00023375,2]
[342540457,1731959433145,-182.8,0.00023375,2]
[342540459,1731959433155,-500.0,0.00023375,2]
[342540461,1731959433166,-500.0,0.00023375,2]
[342540463,1731959433181,-500.0,0.00023375,2]
[342540465,1731959433191,-500.0,0.00023375,2]
[342540467,1731959433201,-549.99,0.00023375,2]
[342540469,1731959433211,-284.30980102,0.00023549,2]
[342540471,1731959433221,-176.156,0.00023596,4]
[342540473,1731959433231,-214.6216322,0.00023649,2]
[342540475,1731959433242,-500.0,0.00023649,2]
[342540477,1731959433251,-500.0,0.00023649,2]
[342540479,1731959433261,-500.0,0.00023649,2]
[342540481,1731959433270,-500.0,0.00023649,2]
[342540483,1731959433280,-427.83,0.00023923,2]
[342540484,1731959433290,-500.0,0.00023923,2]
[342540486,1731959433299,-430.26,0.00023923,2]
[342540488,1731959433309,-500.0,0.00023923,2]
[342540490,1731959433319,-500.0,0.00024197,2]
[342540492,1731959433329,-511.6,0.00024197,2]
[342540494,1731959433338,-284.309801,0.00024281,2]
[342540496,1731959433348,-397.28,0.00024471,2]
[342540498,1731959433358,-500.0,0.00024657,2]
[342540500,1731959433367,-172.0158878,0.00024957,2]
[342540502,1731959433377,-500.0,0.00024957,2]
[342540504,1731959433386,-500.0,0.00024957,2]
[342540506,1731959433396,-500.0,0.00024957,2]
[342540508,1731959433405,-500.17166065,0.00024957,2]
[342540510,1731959433415,-222.7405056,0.00024957,2]
[342540512,1731959433428,-500.0,0.00024957,2]
[342540514,1731959433437,-640.47,0.00024957,2]
[342540516,1731959433447,-501.08251477,0.00024957,2]
[342540518,1731959433458,-500.0,0.00024957,2]
[342540520,1731959433467,-500.0,0.00024957,2]
[342540521,1731959433477,-500.0,0.00024957,2]
[342540523,1731959433488,-389.26013408,0.00024957,2]
[342540525,1731959433498,-591.08,0.00024957,2]
[342540527,1731959433508,-500.0,0.00024957,2]
[342540529,1731959433518,-500.0,0.00024957,2]
[342540531,1731959433527,-553.96677325,0.00024957,2]
[342540533,1731959433537,-500.0,0.00024957,2]
[342540535,1731959433546,-500.0,0.00024957,2]
[342540537,1731959433556,-507.87795909,0.00024957,2]
[342540539,1731959433566,-2000.0,0.00024957,2]
[342540541,1731959433575,-490.05777415,0.00024957,2]
[342540543,1731959433584,-500.0,0.00024957,2]
[342540545,1731959433593,-500.0,0.00024957,2]
[342540547,1731959433603,-500.0,0.00024957,2]
[342540549,1731959433613,-500.0,0.00024957,2]
[342540551,1731959433622,-500.0,0.00024957,2]
[342540552,1731959433631,-500.0,0.00024957,2]
[342540554,1731959433641,-505.47,0.00024957,2]
[342540556,1731959433651,-500.66264077,0.00024957,2]
[342540558,1731959433661,-300.0,0.00025,2]
[342540560,1731959433671,-300.0,0.00025,2]
[342540562,1731959433683,-271.0,0.00025,2]
[342540564,1731959433692,-284.309801,0.00025014,2]
[342540566,1731959433702,-420.0,0.00025074,2]
[342540568,1731959433712,-500.0,0.00025231,2]
[342540570,1731959433722,-450.21,0.00025231,2]
[342540572,1731959433732,-500.0,0.00025231,2]
[342540574,1731959433741,-500.0,0.00025231,2]
[342540576,1731959433750,-500.0,0.00025231,2]
[342540578,1731959433759,-173.68,0.00025231,2]
[342540580,1731959433769,-162.93,0.00025231,2]
[342540582,1731959433779,-500.0,0.00025231,2]
[342540584,1731959433789,-279.69,0.00025231,2]
[342540586,1731959433800,-500.0,0.00025505,2]
[342540587,1731959433810,-500.0,0.00025505,2]
[342540589,1731959433820,-500.0,0.00025505,2]
[342540591,1731959433834,-500.0,0.00025699,2]
[342540593,1731959433843,-300.0,0.000257,2]
[342540595,1731959433853,-284.309801,0.00025746,2]
[342540597,1731959433862,-237.64,0.000259,7]
[342540599,1731959433873,-284.309801,0.00026478,2]
[342540601,1731959433883,-300.0,0.000267,2]
[342540603,1731959433892,-284.309801,0.0002721,2]
[342540605,1731959433902,-300.0,0.000277,2]
[342540607,1731959433913,-500.0,0.00027789,2]
[342540608,1731959433925,-500.0,0.00027789,2]
[342540610,1731959433935,-500.0,0.00027799,2]
[342540612,1731959433946,-500.0,0.00027799,2]
[342540614,1731959433955,-500.0,0.00027799,2]
[342540616,1731959433965,-391.27,0.00027799,2]
[342540618,1731959433974,-284.309801,0.00027943,2]
[342540620,1731959433984,-1350.29906721,0.00028675,2]
[342540622,1731959433994,-284.309801,0.00028675,2]
[342540624,1731959434004,-509.69685159,0.00028675,2]
[342540626,1731959434014,-330.0,0.00028681,2]
[342540628,1731959434023,-2610.82089405,0.00028681,2]
[342540630,1731959434034,-300.0,0.000287,2]
[342540632,1731959434044,-500.0,0.00028724,2]
[342540634,1731959434054,-353.84491258,0.00028724,2]
[342540636,1731959434064,-28966.35,0.00028725,10]